[Event "Late-Titled-Tuesday-Blitz-November-28-2023"]
[Site "Chess.com"]
[Date "2023.11.28"]
[Round "6"]
[White "CraiggoryC"]
[Black "SmirnovTimofey2000"]
[Result "1-0"]
[WhiteElo "2185"]
[BlackElo "2053"]
[TimeControl "180+1"]
[EndTime "15:05:13 PST"]
[Termination "CraiggoryC won by checkmate"]

1. e4 {[%clk 0:02:58.6]} 1... e5 {[%clk 0:02:59.9]} 2. Nf3 {[%clk 0:02:58.3]}
2... Nf6 {[%clk 0:03:00.2]} 3. Nxe5 {[%clk 0:02:57.9]} 3... d6 {[%clk
0:03:00.4]} 4. Nf3 {[%clk 0:02:57.9]} 4... Nxe4 {[%clk 0:03:00.6]} 5. Nc3 {[%clk
0:02:58.8]} 5... Nxc3 {[%clk 0:03:00.1]} 6. dxc3 {[%clk 0:02:59.7]} 6... Be7
{[%clk 0:03:00.9]} 7. Be3 {[%clk 0:02:58.7]} 7... Be6 {[%clk 0:02:57]} 8. Qd2
{[%clk 0:02:58.6]} 8... O-O {[%clk 0:02:57]} 9. O-O-O {[%clk 0:02:58.8]} 9... a5
{[%clk 0:02:53.3]} 10. Kb1 {[%clk 0:02:56.6]} 10... Nc6 {[%clk 0:02:53]} 11. h4
{[%clk 0:02:54.3]} 11... Ne5 {[%clk 0:02:50.6]} 12. Ng5 {[%clk 0:02:52.3]} 12...
Nc4 {[%clk 0:02:40.7]} 13. Qd3 {[%clk 0:02:47.2]} 13... Bxg5 {[%clk 0:01:54.2]}
14. hxg5 {[%clk 0:02:45.7]} 14... g6 {[%clk 0:01:54.3]} 15. Bc1 {[%clk
0:02:30.6]} 15... Ne5 {[%clk 0:01:43.4]} 16. Qg3 {[%clk 0:02:22.6]} 16... a4
{[%clk 0:01:32.5]} 17. a3 {[%clk 0:02:20.7]} 17... f5 {[%clk 0:01:15.5]} 18. Re1
{[%clk 0:01:48.7]} 18... Qd7 {[%clk 0:00:49.4]} 19. f4 {[%clk 0:01:20.6]} 19...
Ng4 {[%clk 0:00:39.2]} 20. Be2 {[%clk 0:00:46.2]} 20... Rae8 {[%clk 0:00:38.8]}
21. Bf3 {[%clk 0:00:33.7]} 21... b5 {[%clk 0:00:36.5]} 22. Re2 {[%clk
0:00:28.6]} 22... c5 {[%clk 0:00:28.6]} 23. Rd1 {[%clk 0:00:24.8]} 23... b4
{[%clk 0:00:22]} 24. cxb4 {[%clk 0:00:18.6]} 24... cxb4 {[%clk 0:00:22.3]} 25.
axb4 {[%clk 0:00:18.7]} 25... a3 {[%clk 0:00:21.2]} 26. Red2 {[%clk 0:00:18.4]}
26... a2+ {[%clk 0:00:11.4]} 27. Ka1 {[%clk 0:00:18.1]} 27... d5 {[%clk
0:00:09.1]} 28. Bxd5 {[%clk 0:00:12]} 28... Bxd5 {[%clk 0:00:10]} 29. Rxd5
{[%clk 0:00:12.5]} 29... Qf7 {[%clk 0:00:09.3]} 30. Rd7 {[%clk 0:00:11.8]} 30...
Re7 {[%clk 0:00:09.1]} 31. Rxe7 {[%clk 0:00:10.9]} 31... Qxe7 {[%clk 0:00:10]}
32. Qb3+ {[%clk 0:00:11.1]} 32... Kh8 {[%clk 0:00:09.8]} 33. Qxa2 {[%clk
0:00:10.6]} 33... Ne3 {[%clk 0:00:07.8]} 34. Bxe3 {[%clk 0:00:08.9]} 34... Qxe3
{[%clk 0:00:08.7]} 35. Kb1 {[%clk 0:00:08.5]} 35... Qxf4 {[%clk 0:00:07.4]} 36.
Qd5 {[%clk 0:00:07.1]} 36... Qc7 {[%clk 0:00:03.6]} 37. Qd4+ {[%clk 0:00:07.1]}
37... Qg7 {[%clk 0:00:03.4]} 38. Qd6 {[%clk 0:00:06.4]} 38... Rg8 {[%clk
0:00:03.6]} 39. c3 {[%clk 0:00:06.6]} 39... Re8 {[%clk 0:00:03.4]} 40. g3 {[%clk
0:00:06.8]} 40... Qe7 {[%clk 0:00:03.8]} 41. Qc6 {[%clk 0:00:06.3]} 41... Qe2
{[%clk 0:00:03.3]} 42. Rd7 {[%clk 0:00:06.2]} 42... Qe1+ {[%clk 0:00:03.5]} 43.
Ka2 {[%clk 0:00:06.6]} 43... Qe4 {[%clk 0:00:04]} 44. Qf6+ {[%clk 0:00:05.2]}
44... Kg8 {[%clk 0:00:02.8]} 45. Qg7# {[%clk 0:00:05.7]} 1-0

[Event "Late-Titled-Tuesday-Blitz-November-28-2023"]
[Site "Chess.com"]
[Date "2023.11.28"]
[Round "6"]
[White "kai_nov"]
[Black "WindWhistler11"]
[Result "1-0"]
[WhiteElo "2293"]
[BlackElo "2540"]
[TimeControl "180+1"]
[EndTime "15:05:14 PST"]
[Termination "kai_nov won by checkmate"]

1. d4 {[%clk 0:03:00.9]} 1... e6 {[%clk 0:02:59.9]} 2. c4 {[%clk 0:02:56.6]}
2... Nf6 {[%clk 0:02:59.9]} 3. Nc3 {[%clk 0:02:55.2]} 3... c5 {[%clk 0:03:00.5]}
4. d5 {[%clk 0:02:54.9]} 4... exd5 {[%clk 0:03:01.4]} 5. cxd5 {[%clk 0:02:55.5]}
5... Bd6 {[%clk 0:03:02.1]} 6. g3 {[%clk 0:02:52.3]} 6... O-O {[%clk 0:03:02.3]}
7. Bg2 {[%clk 0:02:52.8]} 7... Re8 {[%clk 0:03:02.9]} 8. Nf3 {[%clk 0:02:51.6]}
8... Bc7 {[%clk 0:02:59.3]} 9. d6 {[%clk 0:02:47]} 9... Ba5 {[%clk 0:02:59.9]}
10. O-O {[%clk 0:02:46.6]} 10... h6 {[%clk 0:02:55.4]} 11. Nd5 {[%clk
0:02:15.6]} 11... Nc6 {[%clk 0:02:45.9]} 12. Nh4 {[%clk 0:01:55.4]} 12... Nxd5
{[%clk 0:01:44.5]} 13. Qxd5 {[%clk 0:01:47.8]} 13... Re5 {[%clk 0:01:41.4]} 14.
Qd3 {[%clk 0:01:35.3]} 14... b6 {[%clk 0:01:36.2]} 15. Bf4 {[%clk 0:01:28.4]}
15... Re6 {[%clk 0:01:18.4]} 16. Nf5 {[%clk 0:01:23.2]} 16... Rb8 {[%clk
0:01:12.9]} 17. Bxc6 {[%clk 0:01:16.1]} 17... dxc6 {[%clk 0:01:05.5]} 18. Ne7+
{[%clk 0:01:15.8]} 18... Kh8 {[%clk 0:00:59]} 19. Nxc6 {[%clk 0:01:14.9]} 19...
Bd7 {[%clk 0:00:42.6]} 20. Nxd8 {[%clk 0:01:11.6]} 20... Rxd8 {[%clk 0:00:43.5]}
21. e4 {[%clk 0:01:02.7]} 21... Bc6 {[%clk 0:00:40.4]} 22. e5 {[%clk 0:00:44.4]}
22... b5 {[%clk 0:00:33.7]} 23. h4 {[%clk 0:00:33.8]} 23... c4 {[%clk
0:00:33.6]} 24. Qf5 {[%clk 0:00:32.1]} 24... Kg8 {[%clk 0:00:31.4]} 25. a3
{[%clk 0:00:28.7]} 25... Bd7 {[%clk 0:00:31]} 26. Qe4 {[%clk 0:00:27.1]} 26...
Bb6 {[%clk 0:00:30.5]} 27. Qd5 {[%clk 0:00:25.8]} 27... Be8 {[%clk 0:00:29.7]}
28. Be3 {[%clk 0:00:24.8]} 28... Ba5 {[%clk 0:00:24.5]} 29. Rad1 {[%clk
0:00:23.5]} 29... a6 {[%clk 0:00:22.4]} 30. Bc5 {[%clk 0:00:22.4]} 30... Bd7
{[%clk 0:00:22.5]} 31. f4 {[%clk 0:00:21.8]} 31... Rg6 {[%clk 0:00:21.6]} 32. f5
{[%clk 0:00:20.3]} 32... Rxg3+ {[%clk 0:00:21.1]} 33. Kh2 {[%clk 0:00:20.2]}
33... Rg4 {[%clk 0:00:20.8]} 34. e6 {[%clk 0:00:19.4]} 34... Be8 {[%clk
0:00:18.6]} 35. d7 {[%clk 0:00:18.1]} 35... Bc7+ {[%clk 0:00:17.5]} 36. Kh1
{[%clk 0:00:16.5]} 36... Rxh4+ {[%clk 0:00:17.3]} 37. Kg2 {[%clk 0:00:16.8]}
37... Rh2+ {[%clk 0:00:16.9]} 38. Kg1 {[%clk 0:00:17.1]} 38... Bxd7 {[%clk
0:00:09.4]} 39. exd7 {[%clk 0:00:16]} 39... Rh5 {[%clk 0:00:08.6]} 40. Be7
{[%clk 0:00:15.6]} 40... Rb8 {[%clk 0:00:07.5]} 41. d8=Q+ {[%clk 0:00:14.8]}
41... Bxd8 {[%clk 0:00:07.7]} 42. Bxd8 {[%clk 0:00:15.5]} 42... Kh7 {[%clk
0:00:06]} 43. Rf2 {[%clk 0:00:15.5]} 43... Rb7 {[%clk 0:00:05.2]} 44. Rg2 {[%clk
0:00:15.1]} 44... Ra7 {[%clk 0:00:03.8]} 45. Re1 {[%clk 0:00:15.1]} 45... g6
{[%clk 0:00:02.8]} 46. Re7 {[%clk 0:00:14.7]} 46... Rxe7 {[%clk 0:00:02.5]} 47.
Bxe7 {[%clk 0:00:15.6]} 47... Rxf5 {[%clk 0:00:03.1]} 48. Qd4 {[%clk 0:00:14.8]}
48... h5 {[%clk 0:00:03.2]} 49. Bf8 {[%clk 0:00:15.1]} 49... f6 {[%clk
0:00:02.5]} 50. Qd7+ {[%clk 0:00:15.3]} 50... Kh8 {[%clk 0:00:01.8]} 51. Qg7#
{[%clk 0:00:16.2]} 1-0

[Event "Late-Titled-Tuesday-Blitz-November-28-2023"]
[Site "Chess.com"]
[Date "2023.11.28"]
[Round "6"]
[White "SEBAZZANO"]
[Black "Fortitudine"]
[Result "0-1"]
[WhiteElo "2257"]
[BlackElo "2376"]
[TimeControl "180+1"]
[EndTime "15:05:14 PST"]
[Termination "Fortitudine won on time"]

1. d4 {[%clk 0:02:59.8]} 1... Nf6 {[%clk 0:02:59.5]} 2. Bf4 {[%clk 0:02:51.9]}
2... g6 {[%clk 0:02:55.6]} 3. Nc3 {[%clk 0:02:51.5]} 3... d6 {[%clk 0:02:53.1]}
4. e4 {[%clk 0:02:51.4]} 4... Nc6 {[%clk 0:02:53.3]} 5. Nf3 {[%clk 0:02:48.2]}
5... Bg4 {[%clk 0:02:45.9]} 6. d5 {[%clk 0:02:47.9]} 6... Nb8 {[%clk 0:02:39]}
7. Be2 {[%clk 0:02:46.1]} 7... Bg7 {[%clk 0:02:37.9]} 8. Qd2 {[%clk 0:02:45.8]}
8... c6 {[%clk 0:02:36.5]} 9. h3 {[%clk 0:02:43.6]} 9... Bxf3 {[%clk 0:02:28.8]}
10. Bxf3 {[%clk 0:02:44.5]} 10... Qa5 {[%clk 0:02:27.1]} 11. O-O {[%clk
0:02:31.9]} 11... O-O {[%clk 0:02:24.2]} 12. Rad1 {[%clk 0:02:27.3]} 12... Rd8
{[%clk 0:02:11.7]} 13. Rfe1 {[%clk 0:02:24.3]} 13... Nbd7 {[%clk 0:01:51.9]} 14.
Bh6 {[%clk 0:01:58.4]} 14... Bh8 {[%clk 0:01:44.8]} 15. g3 {[%clk 0:01:52.5]}
15... Re8 {[%clk 0:01:43.6]} 16. Bg2 {[%clk 0:01:48.2]} 16... Rac8 {[%clk
0:01:42.8]} 17. Kh2 {[%clk 0:01:33.8]} 17... Ne5 {[%clk 0:01:42.3]} 18. Qe2
{[%clk 0:01:18.1]} 18... cxd5 {[%clk 0:01:24.3]} 19. exd5 {[%clk 0:01:00.7]}
19... Qa6 {[%clk 0:01:22.6]} 20. Qxa6 {[%clk 0:00:45.8]} 20... bxa6 {[%clk
0:01:23.5]} 21. Be3 {[%clk 0:00:45.8]} 21... Rc7 {[%clk 0:01:18.8]} 22. Bd4
{[%clk 0:00:40.5]} 22... Ned7 {[%clk 0:01:11.3]} 23. Bf1 {[%clk 0:00:37.7]}
23... Nc5 {[%clk 0:01:05.5]} 24. Bxc5 {[%clk 0:00:31.9]} 24... Rxc5 {[%clk
0:01:06.4]} 25. Bxa6 {[%clk 0:00:32.1]} 25... Bg7 {[%clk 0:00:59.3]} 26. Bb5
{[%clk 0:00:31.2]} 26... Rb8 {[%clk 0:00:57.5]} 27. a4 {[%clk 0:00:25.6]} 27...
Bf8 {[%clk 0:00:55.3]} 28. Rb1 {[%clk 0:00:20.3]} 28... Nxd5 {[%clk 0:00:51.5]}
29. Nxd5 {[%clk 0:00:21.2]} 29... Rxd5 {[%clk 0:00:52.4]} 30. Bd3 {[%clk
0:00:18.1]} 30... e6 {[%clk 0:00:48.6]} 31. b3 {[%clk 0:00:17.5]} 31... Rd4
{[%clk 0:00:47.7]} 32. Rbd1 {[%clk 0:00:16.9]} 32... Kg7 {[%clk 0:00:46.6]} 33.
Bc4 {[%clk 0:00:16.8]} 33... Rxd1 {[%clk 0:00:47.5]} 34. Rxd1 {[%clk 0:00:16.9]}
34... d5 {[%clk 0:00:48.4]} 35. Bd3 {[%clk 0:00:15.5]} 35... a5 {[%clk
0:00:49.1]} 36. f4 {[%clk 0:00:15.7]} 36... Bb4 {[%clk 0:00:49.1]} 37. Kg2
{[%clk 0:00:15.9]} 37... Rc8 {[%clk 0:00:49.7]} 38. Kf3 {[%clk 0:00:15.9]} 38...
h5 {[%clk 0:00:50.2]} 39. g4 {[%clk 0:00:15.7]} 39... hxg4+ {[%clk 0:00:51.1]}
40. hxg4 {[%clk 0:00:16.6]} 40... Rh8 {[%clk 0:00:51.8]} 41. Kg2 {[%clk
0:00:16.3]} 41... Kf6 {[%clk 0:00:50.2]} 42. Rh1 {[%clk 0:00:15.7]} 42... Rxh1
{[%clk 0:00:49.8]} 43. Kxh1 {[%clk 0:00:16.6]} 43... g5 {[%clk 0:00:50]} 44.
fxg5+ {[%clk 0:00:15.7]} 44... Kxg5 {[%clk 0:00:50.9]} 45. Be2 {[%clk
0:00:16.3]} 45... Kf4 {[%clk 0:00:51.4]} 46. Kg2 {[%clk 0:00:16.7]} 46... Ke3
{[%clk 0:00:51.9]} 47. Kf1 {[%clk 0:00:16]} 47... f6 {[%clk 0:00:50.1]} 48. Bd3
{[%clk 0:00:14.9]} 48... e5 {[%clk 0:00:50]} 49. Bf5 {[%clk 0:00:14.5]} 49...
Kd2 {[%clk 0:00:45]} 50. Be6 {[%clk 0:00:13]} 50... d4 {[%clk 0:00:42.4]} 51.
Bf5 {[%clk 0:00:12.8]} 51... Ke3 {[%clk 0:00:42.7]} 52. Bd3 {[%clk 0:00:06.1]}
52... e4 {[%clk 0:00:41.6]} 53. Bb5 {[%clk 0:00:05.6]} 53... d3 {[%clk 0:00:42]}
54. cxd3 {[%clk 0:00:05.6]} 54... exd3 {[%clk 0:00:42]} 55. Bc4 {[%clk
0:00:04.3]} 55... Kd2 {[%clk 0:00:38.8]} 56. Kf2 {[%clk 0:00:03.7]} 56... Kc2
{[%clk 0:00:36]} 0-1

[Event "Late-Titled-Tuesday-Blitz-November-28-2023"]
[Site "Chess.com"]
[Date "2023.11.28"]
[Round "6"]
[White "temiksmozg"]
[Black "Andrei_Skvortsov"]
[Result "0-1"]
[WhiteElo "2600"]
[BlackElo "2758"]
[TimeControl "180+1"]
[EndTime "15:05:16 PST"]
[Termination "Andrei_Skvortsov won on time"]

1. e4 {[%clk 0:03:00.9]} 1... d5 {[%clk 0:02:59.8]} 2. exd5 {[%clk 0:03:00.6]}
2... Qxd5 {[%clk 0:03:00.7]} 3. Nc3 {[%clk 0:03:00.6]} 3... Qe5+ {[%clk
0:03:00.9]} 4. Be2 {[%clk 0:02:58]} 4... Bg4 {[%clk 0:03:01]} 5. d4 {[%clk
0:02:56.8]} 5... Bxe2 {[%clk 0:03:01.7]} 6. Ngxe2 {[%clk 0:02:55.8]} 6... Qa5
{[%clk 0:03:02.4]} 7. b4 {[%clk 0:02:54.9]} 7... Qxb4 {[%clk 0:03:02.1]} 8. Qd3
{[%clk 0:02:54.1]} 8... Qd6 {[%clk 0:03:02.2]} 9. Bf4 {[%clk 0:02:51.8]} 9...
Qd7 {[%clk 0:02:56.1]} 10. d5 {[%clk 0:02:27.4]} 10... Nf6 {[%clk 0:02:42.6]}
11. O-O {[%clk 0:02:20.2]} 11... c6 {[%clk 0:02:40.7]} 12. dxc6 {[%clk
0:02:10.7]} 12... Nxc6 {[%clk 0:02:35.7]} 13. Qb5 {[%clk 0:01:47.1]} 13... e5
{[%clk 0:02:19.3]} 14. Rfd1 {[%clk 0:01:36.5]} 14... Qc7 {[%clk 0:02:09.7]} 15.
Bg5 {[%clk 0:01:29.4]} 15... a6 {[%clk 0:02:04]} 16. Qa4 {[%clk 0:01:20.5]}
16... Qa5 {[%clk 0:01:48.9]} 17. Qxa5 {[%clk 0:01:10.6]} 17... Nxa5 {[%clk
0:01:48.5]} 18. Bxf6 {[%clk 0:01:11.5]} 18... gxf6 {[%clk 0:01:49.1]} 19. Nd5
{[%clk 0:01:12.4]} 19... O-O-O {[%clk 0:01:48.4]} 20. Nxf6 {[%clk 0:01:03.2]}
20... Bc5 {[%clk 0:01:38.8]} 21. Ne4 {[%clk 0:00:58.6]} 21... Be7 {[%clk
0:01:36]} 22. N2g3 {[%clk 0:00:57.8]} 22... Rxd1+ {[%clk 0:01:17]} 23. Rxd1
{[%clk 0:00:57.3]} 23... Rd8 {[%clk 0:01:17.1]} 24. Rxd8+ {[%clk 0:00:56.7]}
24... Kxd8 {[%clk 0:01:17.3]} 25. Nf5 {[%clk 0:00:56.2]} 25... Nc4 {[%clk
0:01:17.8]} 26. Kf1 {[%clk 0:00:47.5]} 26... Kd7 {[%clk 0:01:16.4]} 27. Ke2
{[%clk 0:00:45.3]} 27... b5 {[%clk 0:01:00.5]} 28. g4 {[%clk 0:00:40.6]} 28...
f6 {[%clk 0:00:56.6]} 29. Kd3 {[%clk 0:00:31.3]} 29... Nb2+ {[%clk 0:00:51.2]}
30. Kc3 {[%clk 0:00:27]} 30... Na4+ {[%clk 0:00:51.4]} 31. Kd2 {[%clk
0:00:25.2]} 31... Bb4+ {[%clk 0:00:46.8]} 32. Kd3 {[%clk 0:00:21.3]} 32... Nb2+
{[%clk 0:00:31.5]} 33. Ke2 {[%clk 0:00:21.1]} 33... Ke6 {[%clk 0:00:31.3]} 34.
h4 {[%clk 0:00:18.9]} 34... Bf8 {[%clk 0:00:26.2]} 35. h5 {[%clk 0:00:18.3]}
35... Nc4 {[%clk 0:00:26.3]} 36. Kd3 {[%clk 0:00:12]} 36... Nb6 {[%clk
0:00:26.2]} 37. Ne3 {[%clk 0:00:08.9]} 37... Be7 {[%clk 0:00:24]} 38. Ng3 {[%clk
0:00:08.8]} 38... Bc5 {[%clk 0:00:22.2]} 39. Nd1 {[%clk 0:00:04.3]} 39... Nd5
{[%clk 0:00:21.6]} 40. f3 {[%clk 0:00:03.3]} 40... Nb4+ {[%clk 0:00:21.2]} 41.
Kd2 {[%clk 0:00:02.2]} 41... Nxa2 {[%clk 0:00:20.9]} 42. c3 {[%clk 0:00:02.9]}
42... b4 {[%clk 0:00:20.3]} 43. Ne4 {[%clk 0:00:03.1]} 43... Be7 {[%clk
0:00:16.8]} 44. Kc2 {[%clk 0:00:02.9]} 44... Nxc3 {[%clk 0:00:16.5]} 45. Ndxc3
{[%clk 0:00:02.6]} 45... bxc3 {[%clk 0:00:17.4]} 46. Kxc3 {[%clk 0:00:03.4]}
46... Kd5 {[%clk 0:00:17.7]} 47. Kd3 {[%clk 0:00:03.7]} 47... a5 {[%clk
0:00:17.6]} 48. Nc3+ {[%clk 0:00:03.9]} 48... Kc5 {[%clk 0:00:17.2]} 49. Kc2
{[%clk 0:00:03.4]} 49... Kc4 {[%clk 0:00:17.5]} 50. Ne2 {[%clk 0:00:01.9]} 50...
a4 {[%clk 0:00:17.5]} 51. f4 {[%clk 0:00:02]} 51... a3 {[%clk 0:00:16.9]} 0-1

[Event "Late-Titled-Tuesday-Blitz-November-28-2023"]
[Site "Chess.com"]
[Date "2023.11.28"]
[Round "6"]
[White "Heinza9"]
[Black "DvaHrasta"]
[Result "1/2-1/2"]
[WhiteElo "2336"]
[BlackElo "2495"]
[TimeControl "180+1"]
[EndTime "15:05:20 PST"]
[Termination "Game drawn by repetition"]

1. e4 {[%clk 0:03:00.9]} 1... c6 {[%clk 0:02:59.2]} 2. d4 {[%clk 0:03:00.3]}
2... d5 {[%clk 0:02:59.2]} 3. exd5 {[%clk 0:03:00.7]} 3... cxd5 {[%clk
0:02:59.3]} 4. c4 {[%clk 0:03:01.1]} 4... Nf6 {[%clk 0:02:58.7]} 5. Nc3 {[%clk
0:03:01.2]} 5... Nc6 {[%clk 0:02:57.7]} 6. Bg5 {[%clk 0:02:59.1]} 6... dxc4
{[%clk 0:02:56.9]} 7. Bxc4 {[%clk 0:02:57.6]} 7... e6 {[%clk 0:02:56.5]} 8. Nf3
{[%clk 0:02:57]} 8... Be7 {[%clk 0:02:56.6]} 9. O-O {[%clk 0:02:56.4]} 9... O-O
{[%clk 0:02:56.7]} 10. a3 {[%clk 0:02:56.1]} 10... a6 {[%clk 0:02:56.5]} 11. Qd3
{[%clk 0:02:51.4]} 11... b5 {[%clk 0:02:55.1]} 12. Ba2 {[%clk 0:02:50.8]} 12...
Bb7 {[%clk 0:02:54.8]} 13. Rad1 {[%clk 0:02:49.9]} 13... Rc8 {[%clk 0:02:47.5]}
14. Bxf6 {[%clk 0:02:42.8]} 14... Bxf6 {[%clk 0:02:42.1]} 15. d5 {[%clk
0:02:43.2]} 15... exd5 {[%clk 0:02:28.2]} 16. Nxd5 {[%clk 0:02:40]} 16... Bxb2
{[%clk 0:02:20.2]} 17. h4 {[%clk 0:02:30.1]} 17... Ne5 {[%clk 0:02:05.1]} 18.
Nxe5 {[%clk 0:02:29.1]} 18... Bxe5 {[%clk 0:02:05]} 19. Qe4 {[%clk 0:02:28.7]}
19... Re8 {[%clk 0:01:56.2]} 20. Nf6+ {[%clk 0:01:55.6]} 20... Qxf6 {[%clk
0:01:43]} 21. Qxb7 {[%clk 0:01:55.5]} 21... Rc7 {[%clk 0:01:41.5]} 22. Qd5
{[%clk 0:01:32.6]} 22... Qxh4 {[%clk 0:01:37.1]} 23. g3 {[%clk 0:01:30.6]} 23...
Bxg3 {[%clk 0:01:25.5]} 24. fxg3 {[%clk 0:01:28.6]} 24... Qxg3+ {[%clk
0:01:25.5]} 25. Qg2 {[%clk 0:01:27]} 25... Qxg2+ {[%clk 0:01:23.7]} 26. Kxg2
{[%clk 0:01:27.1]} 26... Rc2+ {[%clk 0:01:09.7]} 27. Rf2 {[%clk 0:01:21.6]}
27... Rxf2+ {[%clk 0:01:09.5]} 28. Kxf2 {[%clk 0:01:21.8]} 28... g6 {[%clk
0:01:03.7]} 29. Rd7 {[%clk 0:01:21.4]} 29... Rf8 {[%clk 0:01:03.7]} 30. Ra7
{[%clk 0:01:20.8]} 30... Kg7 {[%clk 0:00:58.6]} 31. Rxa6 {[%clk 0:01:20.8]}
31... f5 {[%clk 0:00:56]} 32. Ra7+ {[%clk 0:01:18.7]} 32... Kh6 {[%clk
0:00:55.1]} 33. Kf3 {[%clk 0:01:18.7]} 33... Rc8 {[%clk 0:00:52.5]} 34. Kf4
{[%clk 0:01:08.8]} 34... Rc5 {[%clk 0:00:43.4]} 35. Bg8 {[%clk 0:01:06.7]} 35...
g5+ {[%clk 0:00:43.6]} 36. Ke3 {[%clk 0:01:03.8]} 36... Re5+ {[%clk 0:00:37.7]}
37. Kf3 {[%clk 0:01:00.3]} 37... Rc5 {[%clk 0:00:30.3]} 38. Rxh7+ {[%clk
0:00:53]} 38... Kg6 {[%clk 0:00:29.8]} 39. Rd7 {[%clk 0:00:47]} 39... g4+ {[%clk
0:00:26.3]} 40. Kf2 {[%clk 0:00:37.8]} 40... Rc2+ {[%clk 0:00:21.8]} 41. Ke3
{[%clk 0:00:36.2]} 41... g3 {[%clk 0:00:19.1]} 42. Kf3 {[%clk 0:00:34.7]} 42...
g2 {[%clk 0:00:16.3]} 43. Rd1 {[%clk 0:00:34.5]} 43... Rc3+ {[%clk 0:00:15.6]}
44. Kxg2 {[%clk 0:00:33.9]} 44... Rxa3 {[%clk 0:00:15.8]} 45. Bd5 {[%clk
0:00:31.3]} 45... Kg5 {[%clk 0:00:14.9]} 46. Rb1 {[%clk 0:00:29]} 46... Ra5
{[%clk 0:00:13.6]} 47. Rb2 {[%clk 0:00:24.8]} 47... Kf4 {[%clk 0:00:12.6]} 48.
Bf3 {[%clk 0:00:22.8]} 48... Ke3 {[%clk 0:00:10.2]} 49. Be2 {[%clk 0:00:22.5]}
49... f4 {[%clk 0:00:10.1]} 50. Bf3 {[%clk 0:00:18.9]} 50... Ra3 {[%clk
0:00:07.4]} 51. Re2+ {[%clk 0:00:15.7]} 51... Kd3 {[%clk 0:00:05.7]} 52. Rb2
{[%clk 0:00:15.8]} 52... Ke3 {[%clk 0:00:04.4]} 53. Re2+ {[%clk 0:00:15.3]}
53... Kd3 {[%clk 0:00:04.6]} 54. Rb2 {[%clk 0:00:13]} 54... Ke3 {[%clk
0:00:04.7]} 1/2-1/2

[Event "Late-Titled-Tuesday-Blitz-November-28-2023"]
[Site "Chess.com"]
[Date "2023.11.28"]
[Round "6"]
[White "Lukianoo"]
[Black "Goffredo_Fofi"]
[Result "1/2-1/2"]
[WhiteElo "2821"]
[BlackElo "2534"]
[TimeControl "180+1"]
[EndTime "15:05:21 PST"]
[Termination "Game drawn by repetition"]

1. e4 {[%clk 0:03:00.9]} 1... g6 {[%clk 0:02:58.8]} 2. d4 {[%clk 0:03:00.3]}
2... Bg7 {[%clk 0:02:59.5]} 3. Nc3 {[%clk 0:03:00.8]} 3... c6 {[%clk 0:03:00.2]}
4. Nf3 {[%clk 0:02:59.8]} 4... d5 {[%clk 0:03:00.8]} 5. h3 {[%clk 0:02:59.3]}
5... dxe4 {[%clk 0:03:01.3]} 6. Nxe4 {[%clk 0:02:59]} 6... Nf6 {[%clk
0:03:02.2]} 7. Nxf6+ {[%clk 0:02:58.5]} 7... exf6 {[%clk 0:03:03.1]} 8. Be3
{[%clk 0:02:56.5]} 8... O-O {[%clk 0:03:03.6]} 9. Be2 {[%clk 0:02:54.5]} 9... a5
{[%clk 0:03:04.2]} 10. O-O {[%clk 0:02:53.7]} 10... Na6 {[%clk 0:03:04.8]} 11.
Qd2 {[%clk 0:02:52.8]} 11... Re8 {[%clk 0:03:03.9]} 12. Rfe1 {[%clk 0:02:45.6]}
12... Nc7 {[%clk 0:03:03.1]} 13. Bh6 {[%clk 0:02:43]} 13... Bxh6 {[%clk
0:02:54.8]} 14. Qxh6 {[%clk 0:02:43.9]} 14... Bf5 {[%clk 0:02:54.9]} 15. c3
{[%clk 0:02:41.7]} 15... Nd5 {[%clk 0:02:51.7]} 16. Qd2 {[%clk 0:02:36.5]} 16...
Qd6 {[%clk 0:02:47.9]} 17. Nh2 {[%clk 0:02:32.8]} 17... Nf4 {[%clk 0:02:41.3]}
18. Bf1 {[%clk 0:02:29.9]} 18... Kg7 {[%clk 0:02:32.2]} 19. Rxe8 {[%clk
0:02:23.3]} 19... Rxe8 {[%clk 0:02:33.1]} 20. Re1 {[%clk 0:02:22.6]} 20... Rxe1
{[%clk 0:02:32.8]} 21. Qxe1 {[%clk 0:02:23.5]} 21... Be6 {[%clk 0:02:33.2]} 22.
a3 {[%clk 0:02:18.6]} 22... Qd5 {[%clk 0:02:12.9]} 23. Qe3 {[%clk 0:02:10.3]}
23... Qd6 {[%clk 0:02:00.6]} 24. Nf3 {[%clk 0:02:04.6]} 24... Nd5 {[%clk
0:01:56.6]} 25. Qe1 {[%clk 0:02:01.9]} 25... Nb6 {[%clk 0:01:55.9]} 26. Nd2
{[%clk 0:01:54.7]} 26... Na4 {[%clk 0:01:48.6]} 27. Qc1 {[%clk 0:01:47.7]} 27...
Qf4 {[%clk 0:01:45.2]} 28. g3 {[%clk 0:01:47.6]} 28... Qd6 {[%clk 0:01:22]} 29.
Nc4 {[%clk 0:01:36.3]} 29... Qc7 {[%clk 0:01:07.9]} 30. Qc2 {[%clk 0:01:20.7]}
30... b5 {[%clk 0:01:06.9]} 31. Ne3 {[%clk 0:01:20.7]} 31... Nb6 {[%clk
0:01:05.7]} 32. h4 {[%clk 0:01:14.5]} 32... h5 {[%clk 0:01:02.5]} 33. Qe4 {[%clk
0:01:10.9]} 33... a4 {[%clk 0:00:55.4]} 34. Bg2 {[%clk 0:01:06.6]} 34... Nd5
{[%clk 0:00:54.1]} 35. Qd3 {[%clk 0:00:59.9]} 35... Qd6 {[%clk 0:00:49.9]} 36.
Bf3 {[%clk 0:00:44.9]} 36... f5 {[%clk 0:00:47.6]} 37. Qd2 {[%clk 0:00:42]}
37... Nf6 {[%clk 0:00:38.5]} 38. Ng2 {[%clk 0:00:32.8]} 38... Bd5 {[%clk
0:00:38.8]} 39. Bxd5 {[%clk 0:00:32.7]} 39... Nxd5 {[%clk 0:00:38.4]} 40. Nf4
{[%clk 0:00:27.1]} 40... Nxf4 {[%clk 0:00:33.6]} 41. Qxf4 {[%clk 0:00:25.7]}
41... Qxf4 {[%clk 0:00:21.4]} 42. gxf4 {[%clk 0:00:26.6]} 42... f6 {[%clk
0:00:22.1]} 43. Kg2 {[%clk 0:00:26.5]} 43... Kh6 {[%clk 0:00:22.7]} 44. Kg3
{[%clk 0:00:26]} 44... g5 {[%clk 0:00:22.4]} 45. Kh3 {[%clk 0:00:22.2]} 45...
Kg6 {[%clk 0:00:21.1]} 46. Kg3 {[%clk 0:00:22]} 46... Kh6 {[%clk 0:00:17.6]} 47.
Kg2 {[%clk 0:00:20.3]} 47... Kg6 {[%clk 0:00:09.7]} 48. Kf3 {[%clk 0:00:20]}
48... gxh4 {[%clk 0:00:08.4]} 49. Kg2 {[%clk 0:00:19.8]} 49... Kh6 {[%clk
0:00:09.3]} 50. Kh3 {[%clk 0:00:19.7]} 50... Kg6 {[%clk 0:00:10]} 51. Kxh4
{[%clk 0:00:20.3]} 51... Kh6 {[%clk 0:00:10.2]} 52. Kg3 {[%clk 0:00:19.9]} 52...
Kg6 {[%clk 0:00:10.8]} 53. Kh3 {[%clk 0:00:20.3]} 53... Kh6 {[%clk 0:00:10.5]}
54. Kh4 {[%clk 0:00:20.8]} 54... Kg6 {[%clk 0:00:10.8]} 55. f3 {[%clk
0:00:21.7]} 55... Kh6 {[%clk 0:00:10.9]} 56. Kg3 {[%clk 0:00:17.2]} 56... Kg6
{[%clk 0:00:11.2]} 57. Kh4 {[%clk 0:00:18.1]} 57... Kh6 {[%clk 0:00:10.8]} 58.
Kg3 {[%clk 0:00:19]} 58... Kg6 {[%clk 0:00:11.3]} 59. Kh4 {[%clk 0:00:19.9]}
1/2-1/2